[Event "Deutschland Grand Prix 2022"]
[Site "Dortmund"]
[Date "2022.07.24"]
[Round "7.3"]
[White "Svane, Rasmus"]
[Black "L'Ami, Erwin"]
[Result "1/2-1/2"]
[ECO "A37"]
[WhiteElo "2649"]
[BlackElo "2634"]
[Annotator "TA"]
[PlyCount "118"]
[EventDate "2022.07.17"]
[EventType "tourn"]
[EventCountry "GER"]
[SourceTitle "playchess.com"]
[Source "ChessBase"]
[SourceQuality "1"]
[TimeControl "40/5400+30:1800+30"]

{[%evp 12,118,22,9,19,11,41,8,27,22,14,6,17,16,28,25,25,20,20,21,19,15,17,18,11,24,18,0,0,0,8,4,3,0,24,13,15,15,15,17,23,23,30,16,7,17,29,22,22,22,29,23,97,31,34,41,69,41,45,24,17,14,17,12,24,16,24,0,0,0,0,0,0,0,2,0,2,2,2,2,2,0,6,0,0,0,0,0,0,0,0,0,0,0,0,0,0,0,0,0,0,0,0,0,0,0,0,0,0]} 1. Nf3 {[%emt 0:00:04]} c5 {[%emt 0:00:19]} 2. c4 {[%emt 0:00:37]} Nc6 {[%emt 0:00:11]} 3. Nc3 {[%emt 0:02:00]} e5 {[%emt 0:00:20]} 4. g3 {[%emt 0:07:02]} g6 {[%emt 0:01:21]} 5. Bg2 {[%emt 0:00:09]} Bg7 {[%emt 0:00:08]} 6. a3 {[%emt 0:06:19]} a5 {[%emt 0:06:33]} 7. d3 {[%emt 0:00:22]} Nge7 {[%emt 0:00:21] 7...Nge7 is better than 7...d6. A37: Symmetrical English vs ...g6: 4 Bg2 Bg7 5 Nf3.} 8. Nd2 {[%emt 0:00:59][%cal Bf3d2,Bd2f1,Bf1e3][%mdl 32]} O-O {[%emt 0:07:14]} 9. Nf1 {[%emt 0:08:35]} Rb8 {[%emt 0:10:53]} 10. Rb1 {[%emt 0:06:43]} d6 {[%emt 0:04:31]} 11. Ne3 {[%emt 0:00:43]} Bd7 {[%emt 0:05:16]} 12. Bd2 {[%emt 0:10:25]} Nd4 {[%emt 0:09:38]} 13. b4 {[%emt 0:04:47]} axb4 {[%emt 0:00:54]} 14. axb4 {[%emt 0:00:04]} cxb4 {[%emt 0:00:25]} 15. Rxb4 {[%emt 0:00:34]} b5 {[%emt 0:00:28]} 16. cxb5 {[%emt 0:05:06]} Nxb5 {[%emt 0:00:16] [#]} 17. Ned5 $146 {[%emt 0:08:34]} ({Predecessor:} 17. O-O Nd4 18. Rxb8 Qxb8 19. Ned5 Nec6 20. e3 Ne6 21. Qc2 Nb4 22. Nxb4 Qxb4 23. Rb1 {1-0 (39) Matamoros Franco,C (2525)-Cu Hor,W (2259) Tromsoe 2014}) 17... Nxd5 {[%emt 0:03:39]} 18. Nxd5 {[%emt 0:01:05]} Nc7 {[%emt 0:06:53]} 19. O-O {[%emt 0:03:02]} Nxd5 {[%emt 0:07:21]} 20. Bxd5 {[%emt 0:00:54]} Qe7 {[%emt 0:00:41]} 21. Qb3 {[%emt 0:04:15]} Rxb4 {[%emt 0:00:15]} 22. Bxb4 {[%emt 0:03:00]} Rc8 {[%emt 0:02:44]} 23. Ba3 {[%emt 0:07:49]} Bf8 {[%emt 0:02:35]} 24. Rb1 {[%emt 0:01:43]} Qe8 {[%emt 0:09:14]} 25. Qa2 {[%emt 0:02:18]} Bc6 {[%emt 0:09:52]} 26. Rb6 {[%emt 0:02:58]} Qd7 {[%emt 0:01:54]} 27. Qc4 {[%emt 0:05:18]} Bxd5 {[%emt 0:00:37]} 28. Qxd5 {[%emt 0:00:07]} Re8 {[%emt 0:02:50]} 29. e4 {[%emt 0:04:33][%cal Ra3d6]} Rd8 {[%emt 0:00:27]} 30. Rb7 {[%emt 0:02:00]} Qe8 {[%emt 0:00:56]} 31. Kg2 {[%emt 0:00:28]} Rd7 {[%emt 0:02:44]} (31... Rb8 $11) 32. Rb6 {[%emt 0:00:59]} (32. Qc6 $16 Rd8 33. Qxe8 Rxe8 34. Rd7) 32... Qe7 {[%emt 0:01:46]} 33. h4 {[%emt 0:00:50]} Kg7 {[%emt 0:00:42]} 34. Bc1 {[%emt 0:01:03] White is much more active.} h5 {[%emt 0:01:39]} 35. Bg5 {[%emt 0:00:53]} f6 {[%emt 0:00:10]} 36. Be3 {[%emt 0:00:40]} Qf7 {[%emt 0:01:08]} 37. Qa8 {[%emt 0:00:52] Hoping for Rb8.} Kh7 {[%emt 0:00:20]} 38. Rb8 {[%emt 0:00:44]} Bg7 {[%emt 0:00:06]} 39. Qc6 {[%emt 0:00:42]} d5 {[%emt 0:00:53] The position is equal.} 40. Rb5 {[%emt 0:00:34]} dxe4 {[%emt 0:00:17]} (40... d4 $5 41. Bd2 Rc7 $11) 41. dxe4 {[%emt 0:30:23]} Rc7 {[%emt 0:30:38]} 42. Qa8 {[%emt 0:00:00]} Qd7 {[%emt 0:00:00]} 43. Rb6 {[%emt 0:00:00]} Qf7 {[%emt 0:00:00]} 44. Rb8 {[%emt 0:00:00]} Rd7 {[%emt 0:00:00]} 45. Qc6 {[%emt 0:00:00]} Rc7 {[%emt 0:00:00]} 46. Qb5 {[%emt 0:00:00]} (46. Qd6 {seems wilder.} Qd7 47. Qb4 Qd1 48. Kh2) 46... Rd7 {[%emt 0:00:00]} (46... Qd7 {with more complications.} 47. Qb3 Qf7 48. Qb6 Qc4) 47. Qb3 {[%emt 0:00:00]} (47. Kh2 {looks sharper.} g5 48. Qe2 g4 49. Qa6) 47... Qxb3 {[%emt 0:00:00]} (47... Bh6 {feels hotter.} 48. Qa3 Bxe3 49. Qxe3 Rb7) 48. Rxb3 $11 {[%emt 0:00:00][%mdl 4096] Endgame KRB-KRB} Rc7 {[%emt 0:00:00]} 49. Kf3 {[%emt 0:00:00]} Kg8 {[%emt 0:00:00]} 50. Rb4 {[%emt 0:00:00]} Kf7 {[%emt 0:00:00]} 51. g4 {[%emt 0:00:00]} hxg4+ {[%emt 0:00:00]} 52. Kxg4 {[%emt 0:00:00]} Bf8 {[%emt 0:00:00]} 53. Ra4 {[%emt 0:00:00]} Be7 {[%emt 0:00:00]} 54. h5 {[%emt 0:00:00]} gxh5+ {[%emt 0:00:00]} 55. Kxh5 {[%emt 0:00:00]} Rb7 {[%emt 0:00:00]} 56. Kg4 {[%emt 0:00:00]} Kg6 {[%emt 0:00:00]} 57. Ra7 {[%emt 0:00:00]} Rxa7 {[%emt 0:00:00]} 58. Bxa7 {[%emt 0:00:00]} Bd6 {[%emt 0:00:00]} 59. Be3 {[%emt 0:00:00]} Be7 {[%emt 0:00:00] Weighted Error Value: White=0.07 (flawless) /Black=0.06 (flawless)} 1/2-1/2